bitfinex/quotes_ETHUSD_20250620
["timestamp","ask_amount","ask_price","bid_price","bid_amount"]
[1750445709398,0.77124306,2426.2,2426.1,4.12171904]
[1750445709670,0.8125,2426.6,2426.5,4.12116216]
[1750445709877,10.55681344,2426.6,2426.5,4.12116216]
[1750445710640,10.55683169,2426.6,2426.5,4.12116216]
[1750445710839,10.17167497,2426.6,2426.5,4.12116216]
[1750445711057,0.0607,2426.5,2426.4,4.12124896]
[1750445711252,0.0607,2426.4,2426.3,4.12141373]
[1750445711452,0.77035845,2426.4,2426.3,4.12141373]
[1750445711665,2.476,2426.5,2426.4,4.12133201]
[1750445711857,1.889,2426.6,2426.5,4.12116216]
[1750445712060,9.80187978,2426.6,2426.5,4.12116216]
[1750445712265,9.80189673,2426.6,2426.5,4.12116216]
[1750445712443,2.33478989,2426.6,2426.5,4.12116216]
[1750445712643,9.79989237,2426.6,2426.5,4.12116216]
[1750445713257,9.79983732,2426.6,2426.5,4.12116216]
[1750445713457,9.79985568,2426.6,2426.5,4.12116216]
[1750445713656,9.79987407,2426.6,2426.5,4.12116216]
[1750445713876,0.0607,2426.5,2425.9,4.95313712]
[1750445714069,0.0607,2426.5,2426.4,4.12133201]
[1750445714386,0.83092287,2426.5,2426.4,4.12133201]
[1750445714592,0.0607,2426.4,2426.3,4.12147134]
[1750445714746,3.30686206,2426.4,2426.3,4.12147134]
[1750445715385,0.38503875,2426.4,2426.3,4.12147134]
[1750445715693,10.8754,2426.7,2426.6,4.12099233]
[1750445715849,20.6085151,2426.7,2426.6,4.12099233]
[1750445716355,20.22345755,2426.7,2426.6,4.12099233]
[1750445716561,20.60851473,2426.7,2426.6,4.12099233]
[1750445716757,19.8384,2426.7,2426.6,4.12099233]
[1750445717046,20.60851794,2426.7,2426.6,4.12099233]
[1750445718108,19.79372564,2426.7,2426.6,4.12099233]
[1750445718406,19.79262579,2426.7,2426.6,4.12099233]
[1750445718569,19.79262935,2426.7,2426.6,4.12099233]
[1750445718776,19.40767547,2426.7,2426.6,4.12099233]
[1750445718975,19.7927527,2426.7,2426.5,4.12115454]
[1750445719275,19.0227,2426.7,2426.6,4.12099233]
[1750445719469,19.792798,2426.7,2426.6,4.12099233]
[1750445719690,19.0227,2426.7,2426.6,4.12099233]
[1750445720005,19.79279382,2426.7,2426.6,4.12099233]
[1750445720208,19.79279461,2426.7,2426.6,4.12099233]
[1750445720500,19.79279482,2426.7,2426.6,4.12099233]
[1750445720686,19.79274002,2426.7,2426.6,4.12099233]
[1750445721196,19.73204002,2426.7,2426.5,4.12105698]
[1750445721384,0.83074002,2426.6,2426.5,4.12105698]
[1750445721785,3.30674002,2426.6,2426.5,4.12105698]
[1750445722182,3.24604002,2426.6,2426.5,4.12105698]
[1750445722383,12.18604002,2426.6,2426.5,4.12105698]
[1750445722568,12.18595946,2426.6,2426.5,4.12105698]
[1750445722767,0.7574,2426.9,2426.8,4.12065271]
[1750445722768,1.889,2426.9,2426.8,4.12065271]
[1750445722976,9.71281466,2426.9,2426.8,4.12065271]
[1750445723363,9.3279037,2426.9,2426.8,4.12065271]
[1750445723560,9.32790368,2426.9,2426.8,4.12065271]
[1750445723761,12.24950294,2426.9,2426.8,4.12065271]
[1750445723961,13.00545116,2426.9,2426.8,4.12065271]
[1750445724197,0.0607,2426.8,2426.7,4.12077968]
[1750445724500,10.0,2426.7,2426.3,3.50539919]
[1750445724704,17.50173046,2426.6,2426.5,4.12116216]
[1750445724910,2.476,2426.4,2425.8,0.8254]
[1750445725116,11.86673046,2426.3,2426.2,4.12165264]
[1750445725317,11.80593046,2426.3,2426.1,4.1217552]
[1750445725598,2.92172195,2426.2,2426.1,4.1217552]
[1750445725982,3.30661263,2426.2,2426.1,4.1217552]
[1750445726178,2.92186468,2426.2,2426.1,4.1217552]
[1750445726383,2.5368,2426.2,2426.1,4.1217552]
[1750445727008,3.2927,2426.5,2426.4,4.12133201]
[1750445727316,13.01124816,2426.5,2426.4,4.12133201]
[1750445727715,12.95044816,2426.5,2426.4,4.12133201]
[1750445728011,13.01133976,2426.5,2426.4,4.12133201]
[1750445728509,2.476,2426.3,2426.2,4.12158767]
[1750445728687,10.36153526,2426.3,2426.2,4.12158767]
[1750445729014,10.36151076,2426.3,2426.2,4.12158767]
[1750445729308,10.36125507,2426.3,2426.2,4.12158767]
[1750445729919,10.36074412,2426.3,2426.2,4.12158767]
[1750445730429,10.36073107,2426.3,2426.2,4.12158767]
[1750445730629,10.3607346,2426.3,2426.2,4.12158767]
[1750445730830,10.36074276,2426.3,2426.2,4.12158767]
[1750445731429,10.29994345,2426.3,2426.1,4.12176482]
[1750445731640,2.92127217,2426.2,2426.1,4.12176482]
[1750445732000,2.5368,2426.2,2426.1,4.12176482]
[1750445732234,2.9211778,2426.2,2426.1,4.12176482]
[1750445732709,3.30612044,2426.2,2426.1,4.12176482]
[1750445733121,3.30613613,2426.2,2426.1,4.12176482]
[1750445733900,3.30609758,2426.2,2426.1,4.12176482]
[1750445734300,2.92142752,2426.2,2426.1,4.12176482]
[1750445734632,3.30605038,2426.2,2426.1,4.12176482]
[1750445735235,3.24525038,2426.2,2425.7,0.7842]
[1750445735437,3.24525038,2426.2,2425.5,4.94161428]
[1750445735438,0.0608,2426.0,2425.5,4.94161428]
[1750445735615,0.0608,2426.0,2425.9,4.12218145]
[1750445735801,12.21074928,2426.0,2425.9,4.12218145]
[1750445736705,12.21073327,2426.0,2425.9,4.12218145]
[1750445737035,12.21073397,2426.0,2425.9,4.12218145]
[1750445737338,12.14992482,2426.0,2425.8,4.12227386]
[1750445737551,11.4408,2426.0,2425.9,4.12218145]
[1750445737845,12.21067578,2426.0,2425.9,4.12218145]
[1750445738202,2.86090044,2426.0,2425.9,4.12218145]
[1750445738401,9.66975974,2426.0,2425.8,4.02705531]
[1750445738631,8.9,2426.0,2425.9,4.12218145]
[1750445738829,9.6695606,2426.0,2425.9,4.12218145]
[1750445739023,9.2847803,2426.0,2425.9,4.12218145]
[1750445739223,9.66924367,2426.0,2425.9,4.12218145]
[1750445739542,9.73003378,2426.0,2425.9,4.12218145]
[1750445739705,9.73003792,2426.0,2425.9,4.12218145]
[1750445740035,9.73003798,2426.0,2425.9,4.12218145]
[1750445740235,9.73004392,2426.0,2425.9,4.12218145]
[1750445740535,8.9608,2426.0,2425.9,4.12218145]
[1750445740704,9.73004138,2426.0,2425.9,4.12218145]
[1750445741102,9.34542069,2426.0,2425.9,4.12218145]
[1750445741340,9.73005363,2426.0,2425.9,4.12218145]
[1750445741510,9.73005383,2426.0,2425.9,4.12218145]
[1750445741710,0.0608,2425.9,2425.7,4.12238515]
[1750445741910,9.94436277,2425.8,2425.7,4.12238515]
[1750445742112,10.32891786,2425.8,2425.7,4.12238515]
[1750445742339,10.32864759,2425.8,2425.7,4.12238515]
[1750445742666,9.94422377,2425.8,2425.7,4.12238515]
[1750445742875,0.0608,2425.7,2425.6,4.12254955]
[1750445743168,0.44522377,2425.7,2425.6,4.12254955]
[1750445743360,2.92122377,2425.7,2425.6,4.12254955]
[1750445743548,2.92100079,2425.7,2425.6,4.12254955]
[1750445744235,2.476,2425.9,2425.8,4.12235138]
[1750445744457,12.18842695,2425.9,2425.8,4.12235138]
[1750445745659,12.18830323,2425.9,2425.8,4.12235138]
[1750445745856,12.12735438,2425.9,2425.8,4.12235138]
[1750445746074,12.12734512,2425.9,2425.8,4.12235138]
[1750445746449,12.12734852,2425.9,2425.8,4.12235138]
[1750445746973,12.12749746,2425.9,2425.5,2.67999919]
[1750445747277,2.92047256,2425.8,2425.7,4.12250715]
[1750445747842,2.92046357,2425.8,2425.7,4.12250715]
[1750445748237,2.92048736,2425.8,2425.7,4.12250715]
[1750445748442,2.476,2425.8,2425.7,4.12250715]
[1750445749177,2.85986129,2425.8,2425.7,4.12250715]
[1750445749356,2.476,2425.8,2425.7,4.12250715]
[1750445749679,2.92071035,2425.8,2425.7,4.12250715]
[1750445750043,2.5368,2425.8,2425.7,4.12250715]
[1750445750350,2.92083451,2425.8,2425.7,4.12250715]
[1750445750571,2.92088939,2425.8,2425.7,4.12250715]
[1750445751249,3.30509579,2425.8,2425.7,4.12250715]
[1750445751785,3.24429579,2425.8,2425.7,4.12250715]
[1750445752080,3.24444584,2425.8,2425.7,4.12250715]
[1750445752394,3.24457814,2425.8,2425.7,4.12250715]
[1750445752795,3.30537814,2425.8,2425.7,4.12250715]
[1750445752976,2.8602424,2425.8,2425.7,4.12250715]
[1750445753269,3.24448613,2425.8,2425.7,4.12250715]
[1750445753477,2.86024373,2425.8,2425.7,4.12250715]
[1750445753677,2.86021574,2425.8,2425.7,4.12250715]
[1750445753878,2.86020744,2425.8,2425.7,4.12250715]
[1750445754267,3.24494911,2425.8,2425.7,4.12250715]
[1750445754600,3.24545048,2425.8,2425.7,4.12250715]
[1750445755101,2.86072524,2425.8,2425.7,4.12250715]
[1750445755265,3.24545343,2425.8,2425.7,4.12250715]
[1750445755604,4.06975343,2425.8,2425.7,4.12250715]
[1750445755800,10.7677,2425.6,2425.2,4.12327056]
[1750445755967,12.5326,2425.3,2425.1,4.12346075]
[1750445756162,9.62122591,2425.2,2425.1,4.12346075]
[1750445756501,9.29289845,2425.2,2425.1,4.12346075]
[1750445756676,9.67718095,2425.2,2425.1,4.12346075]
[1750445756875,0.76858095,2425.2,2425.1,4.12346075]
[1750445757088,0.0566,2425.8,2425.1,4.12346075]
[1750445757089,1.869,2425.7,2425.6,4.12269129]
[1750445757411,9.68436312,2425.7,2425.5,4.12277511]
[1750445757612,8.9166,2425.7,2425.6,4.12269129]
[1750445757815,9.68441014,2425.7,2425.5,4.12276472]
[1750445758007,3.30041014,2425.6,2425.5,4.12276472]
[1750445758518,3.30035749,2425.6,2425.5,4.12276472]
[1750445758897,3.24375749,2425.6,2425.5,4.12276472]
[1750445759322,3.24401695,2425.6,2425.5,4.12276472]
[1750445760224,3.30061695,2425.6,2425.5,4.12276472]
[1750445760522,0.0566,2425.5,2425.4,4.12296399]
[1750445760720,0.0566,2425.4,2425.3,4.12311303]
[1750445760926,3.30069038,2425.4,2425.3,4.12311303]
[1750445761623,3.30073528,2425.4,2425.3,4.12311303]
[1750445762410,3.30090405,2425.4,2425.3,4.12311303]
[1750445762616,3.3009098,2425.4,2425.3,4.12311303]
[1750445762831,2.91666748,2425.4,2425.3,4.12311303]
[1750445762993,3.30094077,2425.4,2425.3,4.12311303]
[1750445763191,0.76834077,2425.4,2425.3,5.8187947]
[1750445763396,6.984,2425.6,2425.5,4.12286126]
[1750445763695,0.0566,2425.9,2425.8,4.12235138]
[1750445763924,0.82547525,2425.9,2425.8,4.12235138]
[1750445764392,9.9160336,2425.9,2425.8,4.12235138]
[1750445764589,10.30046425,2425.9,2425.8,4.12235138]
[1750445765001,9.9160336,2425.9,2425.8,4.12235138]
[1750445765234,10.30041065,2425.9,2425.8,4.12235138]
[1750445765426,10.30040958,2425.9,2425.8,4.12235138]
[1750445765938,0.0566,2425.8,2425.3,4.12304596]
[1750445766251,0.0566,2425.8,2425.2,0.7597]
[1750445766252,0.0566,2425.4,2425.2,4.12322867]
[1750445766417,12.14046834,2425.3,2425.2,4.12322867]
[1750445767239,11.75609236,2425.3,2425.2,4.12322867]
[1750445767456,12.14045358,2425.3,2425.2,4.12322867]
[1750445767664,12.14045523,2425.3,2425.2,4.12322867]
[1750445767851,11.75596287,2425.3,2425.2,4.12322867]
[1750445768057,12.08372606,2425.3,2425.2,4.12322867]
[1750445768376,9.61161612,2425.3,2425.2,5.7153999]
[1750445768550,7.37936287,2425.3,2425.2,5.7153999]
[1750445768755,6.995,2425.3,2425.2,5.7153999]
[1750445769268,1.847,2425.4,2425.3,4.12320125]
[1750445769443,9.22433751,2425.4,2425.3,4.12320125]
[1750445770231,9.22433751,2425.4,2425.3,5.51940972]
[1750445770457,10.0566,2425.8,2425.7,4.12252133]
[1750445770645,19.66239456,2425.8,2425.7,4.12252133]
[1750445770844,19.66241693,2425.8,2425.7,4.12252133]
[1750445771564,19.66249481,2425.8,2425.7,4.12252133]
[1750445771867,19.8932417,2425.8,2425.7,4.12252133]
[1750445772239,0.61523484,2425.8,2425.7,4.12252133]
[1750445772444,9.83570139,2425.8,2425.7,4.12252133]
[1750445772753,9.45122495,2425.8,2425.7,4.12252133]
[1750445773063,9.83575058,2425.8,2425.7,4.12252133]
[1750445773367,9.83595388,2425.8,2425.7,4.12252133]
[1750445773566,9.2206126,2425.8,2425.7,4.12252133]
[1750445773772,9.83601911,2425.8,2425.7,4.12252133]
[1750445774068,9.89261911,2425.8,2425.7,4.12252133]
[1750445774361,9.8926266,2425.8,2425.7,4.12252133]
[1750445774571,9.89262611,2425.8,2425.7,4.12252133]
[1750445774766,9.50799708,2425.8,2425.7,4.12252133]
[1750445775068,9.50802503,2425.8,2425.7,4.12252133]
[1750445775270,9.83606913,2425.8,2425.6,4.12255462]
[1750445775444,0.82588465,2425.7,2425.6,4.12255462]
[1750445775763,0.82589406,2425.7,2425.6,4.12255462]
[1750445776272,0.82573904,2425.7,2425.6,4.12255462]
[1750445776470,0.44116952,2425.7,2425.6,4.12255462]
[1750445776660,0.8259337,2425.7,2425.6,4.12255462]
[1750445776833,3.3019337,2425.7,2425.6,4.12255462]
[1750445777036,3.30180449,2425.7,2425.6,4.12255462]
[1750445777235,3.24521828,2425.7,2425.5,4.12283051]
[1750445777548,10.28581828,2425.6,2425.5,4.12283051]
[1750445778272,10.2290863,2425.6,2425.5,4.12283051]
[1750445778434,10.22908187,2425.6,2425.5,4.12283051]
[1750445778637,9.84453435,2425.6,2425.5,4.12283051]
[1750445778836,10.22907103,2425.6,2425.5,4.12283051]
[1750445779059,9.46,2425.6,2425.5,4.12283051]
[1750445779581,10.22916272,2425.6,2425.5,4.12283051]
[1750445779914,10.28575172,2425.6,2425.5,4.12283051]
[1750445780379,10.22915172,2425.6,2425.5,4.12283051]
[1750445780536,9.80689085,2425.6,2425.5,4.12283051]
[1750445780734,9.80689085,2425.6,2425.5,4.12286126]
[1750445780735,9.80689318,2425.6,2425.5,4.12286126]
[1750445781040,0.0566,2425.5,2425.4,4.12292614]
[1750445781236,0.7688,2425.4,2424.8,0.8117]
[1750445781437,0.7688,2425.4,2424.0,0.0205]
[1750445781438,2.476,2425.1,2424.6,0.8117]
[1750445781638,0.0566,2424.8,2424.6,4.12422807]
[1750445781873,8.8876,2424.7,2424.6,4.12422807]
[1750445782071,9.65672508,2424.7,2424.6,4.12422807]
[1750445782245,8.8876,2424.7,2424.6,4.12422807]
[1750445782653,0.0566,2424.6,2424.3,0.8117]
[1750445782849,0.0566,2424.6,2424.1,2.67999919]
[1750445782850,8.52384616,2424.5,2424.1,4.12515841]
[1750445783039,0.0566,2424.3,2424.1,4.12515841]
[1750445783249,0.0566,2424.1,2424.0,4.12534105]
[1750445783580,0.76814616,2424.1,2423.8,4.12575294]
[1750445783877,0.82474616,2424.0,2423.9,4.12549553]
[1750445784195,0.44061078,2424.0,2423.9,4.12549553]
[1750445784399,0.0566,2424.0,2423.9,4.12549553]
[1750445785191,11.307,2424.2,2424.1,4.12524235]
[1750445785393,11.3659,2424.2,2424.1,4.12524235]
[1750445785548,8.8899,2424.2,2424.1,4.12524235]
[1750445785755,0.0589,2424.1,2423.8,4.12567912]
[1750445785943,0.0589,2424.1,2423.9,4.12549091]
[1750445786376,0.8306,2424.1,2423.9,4.12549091]
[1750445786576,0.8306,2424.1,2423.8,4.12567867]
[1750445786789,0.8306,2424.1,2424.0,4.12541254]
[1750445786947,10.8306,2424.1,2423.5,0.7919]
[1750445787284,0.0589,2424.0,2423.9,4.12549793]
[1750445789560,0.0589,2424.0,2423.8,4.12571758]
[1750445789561,1.848,2424.0,2423.8,4.12571758]
[1750445789753,0.0589,2424.2,2424.1,4.12524235]
[1750445789962,18.8929,2424.2,2424.1,4.12524235]
[1750445790162,18.8929,2424.2,2423.6,4.12605249]
[1750445790464,18.834,2424.2,2424.1,4.12524235]
[1750445790678,0.0589,2424.1,2424.0,4.12539159]
[1750445790863,0.0589,2424.1,2423.9,4.12549783]
[1750445791065,0.0589,2423.9,2423.8,4.12559644]
[1750445791366,0.0589,2423.8,2423.7,4.12585324]
[1750445791781,10.0589,2423.7,2422.8,0.7826]
[1750445791992,8.8929,2423.6,2423.0,4.12711514]
[1750445792191,8.834,2423.6,2423.5,4.12626366]
[1750445792397,0.8762,2423.9,2423.5,4.12626366]
[1750445792603,10.0,2423.7,2423.6,4.12609341]
[1750445792781,10.0589,2423.7,2423.6,4.12609341]
[1750445793182,10.0,2423.7,2423.2,0.7998]
[1750445793379,0.0589,2423.6,2423.5,4.12626366]
[1750445793801,10.0,2423.7,2423.2,0.7998]
[1750445794007,0.0589,2423.6,2423.5,4.12626366]
[1750445794175,0.0589,2423.6,2423.4,4.12634287]
[1750445794376,7.0459,2423.5,2423.4,4.12634287]
[1750445794993,10.8762,2423.4,2422.8,0.7998]
[1750445795191,10.0,2423.4,2423.3,4.12660421]
[1750445795393,11.8999,2423.4,2423.3,4.12660421]
[1750445796194,0.0589,2423.3,2423.2,4.12667688]
[1750445796883,10.0,2423.2,2423.0,4.12708729]
[1750445797082,3.2398,2423.3,2423.0,4.12711514]
[1750445797083,7.0459,2423.1,2423.0,4.12711514]
[1750445797911,8.828,2423.1,2423.0,4.12711514]
[1750445798734,0.0589,2423.0,2422.9,4.12718715]
[1750445798916,0.0589,2422.9,2422.8,4.12736219]
[1750445799306,10.0,2423.0,2422.9,4.12728548]
[1750445799616,10.0589,2423.0,2422.9,4.12728548]
[1750445800222,12.479,2423.0,2422.9,4.12728548]
[1750445800404,10.0,2423.0,2422.9,4.12728548]
[1750445800603,18.829,2423.0,2422.9,4.12728548]
[1750445801129,10.0,2423.0,2422.9,4.12728548]
[1750445801416,10.0589,2423.4,2423.3,4.12653266]
[1750445801585,18.8869,2423.4,2423.3,4.12653266]
[1750445801782,0.7741,2423.5,2423.3,4.12653266]
[1750445802136,0.0589,2424.3,2424.0,4.12541254]
[1750445802308,19.6169,2424.1,2424.0,4.12541254]
[1750445802512,29.6169,2424.1,2424.0,4.12541254]
[1750445802923,19.6169,2424.1,2424.0,4.12541254]
[1750445803125,29.6169,2424.1,2424.0,4.12541254]
[1750445803299,10.0,2424.0,2423.9,4.12550576]
[1750445803826,10.0,2424.0,2423.8,4.12561419]
[1750445804003,6.988,2423.9,2423.8,4.12561419]
[1750445804444,10.0589,2423.8,2423.4,0.8011]
[1750445804598,0.0589,2423.6,2423.2,4.12677451]
[1750445804804,8.829,2423.5,2423.4,4.12643393]
[1750445805103,1.8999,2423.5,2423.4,4.12643393]
[1750445805303,8.8879,2423.5,2423.4,4.12643393]
[1750445805508,8.8879,2423.5,2423.3,4.12658679]
[1750445805701,8.829,2423.5,2423.2,4.12666868]
[1750445805902,9.5892,2423.5,2423.2,4.12666868]
[1750445806397,9.5892,2423.5,2422.9,1.58396387]
[1750445806714,0.0589,2423.4,2423.3,4.12652855]
[1750445806909,2.5379,2423.4,2423.1,4.12682936]
[1750445807113,0.0589,2423.3,2423.1,4.12694482]
[1750445807313,6.987,2423.2,2423.1,4.12694482]
[1750445807512,7.0459,2423.2,2422.9,0.7585]
[1750445807724,7.0459,2423.2,2423.0,4.12711514]
[1750445807902,7.0459,2423.2,2423.1,4.12694482]
[1750445808104,7.0459,2423.2,2423.0,4.12701943]
[1750445808341,30.0,2422.7,2422.6,0.22272519]
[1750445808538,82.48136754,2422.7,2422.6,0.22272519]
[1750445808844,83.03136754,2422.7,2422.6,0.22272519]
[1750445809137,83.25994336,2422.7,2422.6,0.22272519]
[1750445809529,83.26018956,2422.7,2422.6,0.22272519]
[1750445809729,83.66555222,2422.7,2422.6,0.22272519]
[1750445810337,82.67504827,2422.7,2422.6,0.22272519]
[1750445811053,83.28475422,2422.7,2422.6,0.22272519]
[1750445811349,83.28475422,2422.7,2421.7,4.12920801]
[1750445811350,2.479,2422.0,2421.7,4.12920801]
[1750445811658,2.5379,2421.7,2421.1,0.805]
[1750445811800,8.929,2421.6,2421.5,4.12967169]
[1750445812403,8.929,2421.6,2421.4,4.12976258]
[1750445812604,8.929,2421.6,2421.5,4.12967169]
[1750445813736,18.929,2421.6,2421.1,0.805]
[1750445813918,10.0589,2421.5,2421.1,0.805]
[1750445814237,8.931,2421.4,2421.3,0.0205]
[1750445814442,10.23392952,2422.0,2421.9,4.12898963]
[1750445814443,0.23392952,2422.0,2421.9,4.12898963]
[1750445814741,9.9288738,2422.0,2421.9,4.12898963]
[1750445814942,9.92895775,2422.0,2421.9,4.12898963]
[1750445815631,9.92893739,2422.0,2421.9,4.12898963]
[1750445816010,9.54743401,2422.0,2421.9,4.12898963]
[1750445816208,9.22462952,2422.0,2421.8,4.12907187]
[1750445816439,0.38085611,2421.9,2421.8,4.12916012]
[1750445816642,0.38086065,2421.9,2421.8,4.12916012]
[1750445816944,0.38092294,2421.9,2421.8,4.12916012]
[1750445817318,0.23392952,2422.0,2421.9,4.12898963]
[1750445817527,9.54294162,2422.0,2421.9,4.92958963]
[1750445817726,9.5429476,2422.0,2421.9,4.92958963]
[1750445818055,9.54279252,2422.0,2421.9,4.92958963]
[1750445818564,9.54279305,2422.0,2421.9,4.92958963]
[1750445819161,9.54279645,2422.0,2421.9,4.92958963]
[1750445819648,9.54277796,2422.0,2421.9,4.92958963]
[1750445820357,0.0587,2421.9,2421.7,4.12928652]
[1750445820557,0.38088954,2421.8,2421.7,4.12928652]
[1750445821014,0.23392952,2422.0,2421.9,4.12898963]
[1750445821419,2.45706696,2422.0,2421.9,4.12898963]
[1750445821615,9.16192952,2422.0,2421.9,5.09163881]
[1750445821852,9.16192952,2422.0,2421.9,5.02985086]
[1750445822016,9.16192952,2422.0,2421.9,5.05035086]
[1750445822639,9.16192952,2422.0,2421.9,7.73035005]
[1750445822819,0.23392952,2422.0,2421.9,5.87095086]
[1750445823022,17.822,2422.7,2422.6,4.94839658]
[1750445823253,18.20293869,2422.7,2422.4,4.12807002]
[1750445823453,0.38093869,2422.6,2422.5,4.12785629]
[1750445824131,0.38119511,2422.6,2422.5,4.12785629]
[1750445824824,9.36219511,2422.6,2422.5,4.92385629]
[1750445825035,9.36219511,2422.6,2422.5,4.90335629]
[1750445825242,8.981,2422.6,2422.5,4.90335629]
[1750445826261,1.888,2423.2,2423.1,4.12681992]
[1750445826467,9.35809078,2423.2,2423.1,4.12681992]
[1750445826661,2.26909078,2423.2,2423.1,4.12681992]
[1750445826834,9.37909078,2423.2,2423.1,4.12681992]
[1750445827231,8.998,2423.2,2423.1,4.12681992]
[1750445827441,9.37917371,2423.2,2423.1,4.12681992]
[1750445828573,24.92883302,2423.2,2422.3,0.8211]
[1750445828779,0.8209724,2423.1,2422.7,4.12754922]
[1750445828964,0.43987371,2423.0,2422.5,4.12796697]
[1750445829167,7.49017371,2422.9,2422.5,4.12796697]
[1750445829362,0.38117371,2422.8,2422.7,4.1276262]
[1750445829978,7.109,2422.9,2422.8,4.12745583]
[1750445830273,7.49020385,2422.9,2422.8,4.12745583]
[1750445830477,0.38120385,2422.9,2422.8,4.12745583]
[1750445830679,0.0587,2423.4,2423.2,4.12677449]
[1750445830877,9.37218964,2423.3,2423.1,4.12683453]
[1750445831077,0.76242062,2423.2,2423.1,4.12683453]
[1750445831283,0.38118964,2423.2,2423.1,4.12683453]
[1750445831949,0.38122907,2423.2,2423.1,4.12683453]
[1750445832485,0.38125836,2423.2,2422.8,0.8211]
[1750445832695,0.3814192,2423.1,2423.0,4.12701325]
[1750445833069,8.991,2423.3,2423.2,4.12677451]
[1750445833399,9.74977874,2423.3,2423.2,4.12677451]
[1750445833699,9.36788449,2423.3,2423.2,4.12677451]
[1750445834200,9.74978915,2423.3,2423.2,4.12677451]
[1750445834414,9.74987987,2423.3,2423.2,4.12677451]
[1750445834562,9.74987987,2423.3,2422.8,0.8211]
[1750445834759,0.0587,2423.1,2422.9,4.12714396]
[1750445835074,0.0587,2423.1,2423.0,4.12711514]
[1750445835268,7.1547,2423.1,2423.0,4.12711514]
[1750445835473,9.36503653,2423.1,2423.0,4.12711514]
[1750445835895,8.983,2423.1,2423.0,4.12711514]
[1750445836099,9.42399392,2423.1,2422.7,2.67999919]
[1750445836265,8.983,2423.1,2423.0,4.12711514]
[1750445836599,8.982,2423.1,2423.0,4.12711514]
[1750445837625,8.982,2423.1,2422.1,0.7973]
[1750445837626,3.2336,2422.9,2422.1,0.7973]
[1750445837910,2.5377,2422.7,2422.1,4.92592807]
[1750445838062,9.81126784,2422.6,2422.4,4.12799374]
[1750445838260,0.76468186,2422.5,2422.4,4.12799374]
[1750445838692,0.38229601,2422.5,2422.4,4.12799374]
[1750445839010,8.989,2422.5,2422.4,4.12799374]
[1750445839619,1.888,2423.1,2422.5,0.7973]
[1750445839763,8.991,2423.1,2422.9,4.92458548]
[1750445839962,8.991,2423.1,2423.0,4.12711514]
[1750445840568,9.37364444,2423.1,2423.0,4.12711514]
[1750445840874,9.37366414,2423.1,2422.9,4.12716574]
[1750445841122,0.38265777,2423.0,2422.7,4.12750701]
[1750445841278,0.0587,2422.9,2422.7,4.12750701]
[1750445841480,0.0587,2422.9,2422.8,4.12745583]
[1750445842172,0.0587,2422.9,2422.7,4.12757098]
[1750445842416,0.38285728,2423.0,2422.7,4.12757098]
[1750445842635,0.0587,2422.9,2422.8,4.12745583]
[1750445842816,9.7456,2423.1,2422.9,4.12728548]
[1750445843001,0.8325,2423.4,2423.0,4.12711514]
[1750445843322,19.8126627,2423.3,2423.1,4.12679339]
[1750445843526,0.38299893,2423.2,2423.1,4.12686283]
[1750445843688,0.38299893,2423.2,2423.0,4.12706002]
[1750445843689,0.44169893,2423.2,2423.0,4.12702247]
[1750445843900,0.44169893,2423.2,2422.5,3.47729919]
[1750445843901,0.0587,2423.2,2423.1,4.12694482]
[1750445844101,0.0587,2423.1,2422.9,4.12719611]
[1750445844406,0.0587,2423.1,2423.0,4.12711514]
[1750445844599,11.467,2423.3,2423.1,4.12694482]
[1750445844803,0.38307,2423.2,2423.1,4.12694482]
[1750445845111,9.42737,2423.2,2423.0,4.12703484]
[1750445845414,8.986,2423.2,2422.9,4.12727276]
[1750445845638,0.44142418,2423.1,2423.0,4.12711514]
[1750445845834,0.0583,2423.1,2423.0,4.12711514]
[1750445846037,0.44145635,2423.1,2422.7,10.0]
[1750445846248,0.0583,2423.1,2423.0,4.12711514]
[1750445846542,0.38338014,2423.1,2423.0,4.12711514]
[1750445848022,8.986,2423.2,2423.1,4.12694482]
[1750445848226,9.75356379,2423.2,2423.1,4.12694482]
[1750445848544,0.0583,2423.1,2422.6,3.47679919]
[1750445848744,0.0583,2423.1,2422.9,4.12712533]
[1750445848958,8.986,2423.2,2423.1,4.12694482]
[1750445849148,9.75349341,2423.2,2423.1,4.12694482]
[1750445849350,9.75349341,2423.2,2422.9,4.12721268]
[1750445849662,9.75349341,2423.2,2422.7,4.1276262]
[1750445849663,0.0583,2423.0,2422.8,4.12737263]
[1750445849873,0.0583,2423.0,2422.9,4.12728548]
[1750445850082,7.51818835,2423.0,2422.9,4.12728548]
[1750445850425,7.45988835,2423.0,2422.9,4.12728548]
[1750445850929,7.45987713,2423.0,2422.9,4.12728548]
[1750445851364,7.84439444,2423.0,2422.9,4.12728548]
[1750445851743,7.84439536,2423.0,2422.9,4.12728548]
[1750445851947,7.45287713,2423.0,2422.9,5.79432508]
[1750445852249,7.069,2423.0,2422.9,5.75305129]
[1750445852441,7.51176089,2423.0,2422.8,4.1273629]
[1750445852658,0.44275322,2422.9,2422.8,4.12745583]
[1750445852858,0.44275156,2422.9,2422.8,4.12745583]
[1750445853460,0.44274714,2422.9,2422.8,4.12745583]
[1750445853980,0.44275616,2422.9,2422.8,4.12745583]
[1750445854364,0.38445616,2422.9,2422.8,4.12745583]
[1750445855271,7.45045616,2422.9,2422.8,4.12745583]
[1750445856286,7.45046361,2422.9,2422.8,4.12745583]
[1750445856579,7.45045661,2422.9,2422.8,4.12745583]
[1750445856782,7.45045164,2422.9,2422.8,4.12745583]
[1750445857160,7.83491951,2422.9,2422.8,4.12745583]
[1750445857488,7.4504837,2422.9,2422.8,4.12745583]
[1750445858385,7.066,2422.9,2422.8,4.12745583]
[1750445858553,7.45055086,2422.9,2422.8,4.12745583]
[1750445859556,7.066,2422.9,2422.8,4.12745583]
[1750445859792,0.0583,2423.1,2423.0,4.12711514]
[1750445859999,7.82005578,2423.1,2423.0,4.12711514]
[1750445860288,7.82005966,2423.1,2423.0,4.12711514]
[1750445861093,7.82003358,2423.1,2423.0,4.12711514]
[1750445862203,0.0583,2423.0,2422.8,4.12738035]
[1750445862386,0.38451679,2422.9,2422.8,4.12735551]
[1750445863067,0.38451679,2422.9,2422.7,4.12758794]
[1750445863068,0.38455291,2422.9,2422.6,4.12779658]
[1750445863267,0.38455291,2422.9,2422.5,0.7846]
[1750445863268,7.81302423,2422.8,2422.5,4.12785358]
[1750445863478,0.0583,2422.6,2422.5,4.12789151]
[1750445863792,7.043,2422.7,2422.6,4.12776078]
[1750445863999,7.043,2422.7,2422.6,4.89096078]
[1750445864185,7.043,2422.7,2422.6,4.12776078]
[1750445865496,7.043,2422.7,2422.6,5.02964997]
[1750445866295,7.043,2422.7,2422.6,4.12776078]